bitfinex/quotes_SOLUSD_20240809
["timestamp","ask_amount","ask_price","bid_price","bid_amount"]
[1723212729303,43.46,156.43,156.29,65.12549]
[1723212729492,49.8538,156.4,156.29,20.0]
[1723212729692,43.46,156.4,156.29,20.0]
[1723212729893,43.46,156.43,156.29,20.0]
[1723212730093,43.46,156.43,156.3,45.37647]
[1723212730315,49.8541,156.4,156.31,20.0]
[1723212730615,43.46,156.4,156.23,6.2337]
[1723212730810,43.46,156.37,156.24,1.27965903]
[1723212731012,43.46,156.4,156.24,44.73965903]
[1723212731220,43.46,156.43,156.25,1.27934438]
[1723212731537,49.8528,156.43,156.25,1.27934438]
[1723212731818,43.46,156.43,156.25,1.27934438]
[1723212732129,43.46,156.43,156.26,0.50196]
[1723212732298,259.2,156.46,156.26,0.50196]
[1723212732299,302.66,156.46,156.28,0.12549]
[1723212732627,45.0,156.45,156.28,66.78101655]
[1723212732841,6.3922,156.44,156.28,66.78101655]
[1723212733029,45.0,156.43,156.28,66.78101655]
[1723212733337,6.3934,156.42,156.28,65.50196]
[1723212733549,88.46,156.43,156.3,0.12549]
[1723212733718,0.12549,156.44,156.3,1.78101343]
[1723212733920,399.66449773,156.51,156.33,43.46]
[1723212733921,43.46,156.49,156.33,43.46]
[1723212734240,44.3017853,156.56,156.37,0.12549]
[1723212734418,44.3017853,156.56,156.4,0.12549]
[1723212734621,0.8417853,156.56,156.44,0.12549]
[1723212734929,0.8417853,156.56,156.44,45.50196]
[1723212735138,0.8417853,156.56,156.46,0.12549]
[1723212735326,0.8417853,156.56,156.46,45.50196]
[1723212735531,0.8417853,156.56,156.48,0.12549]
[1723212735736,0.8417853,156.56,156.48,45.25098]
[1723212735939,0.8417853,156.56,156.49,20.12549]
[1723212736148,0.8417853,156.56,156.51,0.12549]
[1723212736318,6.3824,156.68,156.51,0.12549]
[1723212736319,43.46,156.68,156.53,0.12549]
[1723212736521,43.46,156.68,156.55,0.12549]
[1723212736729,43.46,156.68,156.55,20.0]
[1723212737234,6.3832,156.67,156.55,20.0]
[1723212737540,43.46,156.68,156.56,0.12549]
[1723212737716,43.46,156.68,156.56,45.25098]
[1723212737923,43.46,156.68,156.57,20.0]
[1723212738141,43.46,156.65,156.55,20.0]
[1723212738325,76.2077853,156.72,156.48,6.5921]
[1723212738326,43.46,156.62,156.48,6.5921]
[1723212738525,43.46,156.62,156.49,65.0]
[1723212738725,43.46,156.62,156.49,66.27750693]
[1723212738927,43.46,156.65,156.49,109.73750693]
[1723212739137,0.8417853,156.72,156.52,43.46]
[1723212739466,43.46,156.69,156.53,66.40254516]
[1723212739630,44.3017853,156.72,156.57,0.12549]
[1723212739943,50.6825853,156.72,156.59,0.12549]
[1723212740142,44.3017853,156.72,156.59,1.52770251]
[1723212740319,44.3017853,156.72,156.6,0.12549]
[1723212740523,6.3812,156.71,156.59,0.12549]
[1723212741124,44.3017853,156.72,156.61,0.12549]
[1723212741325,0.8417853,156.72,156.61,66.653116]
[1723212741542,0.8417853,156.72,156.62,0.12549]
[1723212741744,0.8417853,156.72,156.64,0.12549]
[1723212742127,0.8417853,156.72,156.64,1.527265]
[1723212742325,0.8417853,156.72,156.66,0.12549]
[1723212742549,0.8417853,156.72,156.66,0.25098]
[1723212742730,0.8417853,156.72,156.66,0.12549]
[1723212743043,0.8417853,156.72,156.66,21.40162443]
[1723212743269,9.9973469,156.83,156.7,0.12549]
[1723212743430,259.2,156.86,156.7,65.37647]
[1723212743624,259.2,156.86,156.7,65.12549]
[1723212743829,43.46,156.81,156.7,20.0]
[1723212744128,43.46,156.78,156.69,6.3707]
[1723212744323,49.8383,156.78,156.69,6.3707]
[1723212744944,43.46,156.78,156.69,6.3707]
[1723212745329,43.46,156.75,156.63,6.4015]
[1723212745548,0.25098,156.74,156.63,6.4015]
[1723212745768,43.46,156.75,156.63,6.4015]
[1723212745930,45.37647,156.77,156.58,43.46]
[1723212745931,6.3823,156.69,156.58,6.4922]
[1723212746127,6.50789,156.68,156.58,6.4922]
[1723212746328,0.12549,156.67,156.58,6.4922]
[1723212746562,43.46,156.69,156.59,1.27707224]
[1723212746867,49.8409,156.72,156.59,1.27707224]
[1723212747245,45.37647,156.71,156.59,1.27681695]
[1723212747570,45.37647,156.71,156.58,6.4922]
[1723212747740,0.12549,156.68,156.58,6.4922]
[1723212747952,6.384,156.65,156.58,6.4922]
[1723212748169,0.12549,156.64,156.54,15.8487]
[1723212748466,43.58549,156.66,156.54,15.8487]
[1723212748467,43.46,156.66,156.54,15.8487]
[1723212748662,0.25098,156.65,156.54,15.8487]
[1723212748858,6.3849,156.62,156.53,6.5098]
[1723212749058,0.12549,156.61,156.53,6.5098]
[1723212749242,43.46,156.6,156.48,15.5856]
[1723212749446,0.12549,156.61,156.48,15.5856]
[1723212749650,0.25098,156.61,156.48,15.5856]
[1723212749853,0.12549,156.6,156.48,15.5856]
[1723212750048,6.3861,156.59,156.48,15.5856]
[1723212750273,0.25098,156.58,156.48,15.5856]
[1723212750844,0.25098,156.59,156.48,15.5856]
[1723212751048,45.0,156.62,156.49,1.27763973]
[1723212751277,0.50196,156.61,156.48,15.5856]
[1723212751596,6.3861,156.59,156.48,15.5856]
[1723212751775,0.25098,156.58,156.49,20.0]
[1723212751975,43.46,156.63,156.49,20.0]
[1723212752158,43.46,156.66,156.5,43.46]
[1723212752470,6.3823,156.69,156.49,23.4312228]
[1723212752471,43.46,156.69,156.54,0.12549]
[1723212752643,43.46,156.69,156.54,20.12549]
[1723212752847,6.384,156.64,156.54,20.0]
[1723212753162,43.46,156.66,156.54,20.0]
[1723212753465,49.8435,156.66,156.53,20.0]
[1723212753655,6.3837,156.65,156.53,20.0]
[1723212753855,49.8432,156.66,156.53,20.0]
[1723212754042,0.25098,156.65,156.53,20.0]
[1723212754449,0.25098,156.65,156.49,1.27730344]
[1723212754450,43.46,156.63,156.48,1.27733713]
[1723212754650,43.46,156.6,156.45,6.0786]
[1723212754851,0.12549,156.58,156.45,6.0786]
[1723212755248,0.12549,156.57,156.45,6.0786]
[1723212755452,65.37647,156.57,156.45,6.0786]
[1723212755647,0.12549,156.56,156.45,6.0786]
[1723212755851,0.25098,156.56,156.45,6.0786]
[1723212756072,0.12549,156.62,156.46,1.27801912]
[1723212756272,20.50196,156.62,156.46,1.27801912]
[1723212756579,43.46,156.57,156.45,6.0786]
[1723212756877,0.25098,156.56,156.45,6.0786]
[1723212757573,43.46,156.57,156.45,6.0786]
[1723212757752,111.08311695,156.63,156.46,1.27784837]
[1723212757753,50.12101695,156.63,156.46,1.27784837]
[1723212757955,43.46,156.63,156.46,1.27784837]
[1723212758171,49.8448,156.63,156.46,21.27784837]
[1723212758353,43.46,156.63,156.47,0.37647]
[1723212758559,43.46,156.63,156.49,0.12549]
[1723212758883,6.2761,156.69,156.48,20.0]
[1723212758884,6.3875,156.56,156.48,20.0]
[1723212759062,43.46,156.63,156.49,1.27766727]
[1723212759261,6.3849,156.62,156.46,21.27760243]
[1723212759466,43.46,156.63,156.46,20.0]
[1723212759776,6.3853,156.61,156.46,20.0]
[1723212760078,43.46,156.63,156.46,21.27769477]
[1723212760284,43.46,156.63,156.48,0.12549]
[1723212760455,43.46,156.63,156.48,44.86294052]
[1723212760657,43.46,156.63,156.47,45.37647]
[1723212760658,43.46,156.63,156.49,20.0]
[1723212760854,6.3869,156.58,156.49,20.0]
[1723212761051,43.46,156.6,156.49,20.0]
[1723212761378,43.46,156.63,156.5,0.12549]
[1723212761568,6.3836,156.65,156.5,0.12549]
[1723212761755,43.46,156.63,156.49,20.0]
[1723212762072,43.46,156.63,156.5,0.12549]
[1723212762275,43.46,156.66,156.5,0.37647]
[1723212762477,43.46,156.66,156.5,46.65375284]
[1723212762679,43.46,156.66,156.51,20.0]
[1723212762855,43.46,156.63,156.51,20.0]
[1723212763383,2.47302313,156.73,156.54,15.0334]
[1723212763560,6.3812,156.71,156.55,1.77866076]
[1723212763757,43.46,156.73,156.55,66.77866076]
[1723212764057,43.46,156.73,156.55,20.0]
[1723212764256,43.46,156.73,156.56,45.0]
[1723212764561,6.3812,156.71,156.57,20.0]
[1723212764762,43.46,156.73,156.58,46.27676909]
[1723212764974,49.8404,156.73,156.59,20.0]
[1723212765173,6.3799,156.75,156.61,6.6548]
[1723212765376,43.46,156.8,156.61,6.6548]
[1723212765377,43.46,156.8,156.62,65.23835379]
[1723212765576,6.3791,156.77,156.62,109.98737379]
[1723212765754,43.46,156.8,156.62,109.98737379]
[1723212765963,6.3804,156.73,156.62,20.12549]
[1723212766267,6.3814,156.71,156.62,20.0]
[1723212766475,43.46,156.74,156.61,6.6548]
[1723212767160,6.3827,156.68,156.61,6.6548]
[1723212767478,0.25098,156.67,156.61,6.6548]
[1723212767678,0.12549,156.66,156.61,6.6548]
[1723212767870,0.12549,156.66,156.54,21.1165]
[1723212767871,6.3837,156.65,156.54,21.1165]
[1723212768065,0.25098,156.64,156.54,21.1165]
[1723212768255,0.12549,156.63,156.54,21.1165]
[1723212768462,0.12549,156.64,156.54,21.1165]
[1723212768661,0.25098,156.64,156.54,21.1165]
[1723212769272,0.25098,156.64,156.55,20.0]
[1723212769456,0.25098,156.65,156.55,20.0]
[1723212769656,0.12549,156.64,156.54,21.1165]
[1723212769886,6.3856,156.61,156.54,6.0831]
[1723212770087,0.25098,156.6,156.54,6.0831]
[1723212770304,45.0,156.64,156.54,6.0831]
[1723212770504,0.12549,156.63,156.54,6.0831]
[1723212770708,0.25098,156.63,156.54,6.0831]
[1723212770908,0.12549,156.67,156.54,6.0831]
[1723212771278,43.46,156.71,156.54,6.0831]
[1723212771789,43.46,156.71,156.55,20.0]
[1723212771995,43.46,156.68,156.55,20.0]
[1723212772184,6.3832,156.67,156.55,20.0]
[1723212772385,6.3829,156.67,156.55,20.0]
[1723212772581,0.12549,156.66,156.55,20.0]
[1723212772787,0.25098,156.66,156.55,20.0]
[1723212773502,0.25098,156.66,156.54,6.0831]
[1723212773503,0.25098,156.65,156.54,6.0831]
[1723212773814,6.3845,156.63,156.54,6.0831]
[1723212774111,0.12549,156.61,156.54,6.0831]
[1723212774301,6.51069,156.61,156.54,6.0831]
[1723212774598,6.3861,156.59,156.54,6.0831]
[1723212774787,0.12549,156.58,156.54,6.0831]
[1723212774991,0.25098,156.6,156.54,6.0831]
[1723212775192,0.12549,156.6,156.54,6.0831]
[1723212775381,45.50196,156.61,156.54,6.0831]
[1723212775577,45.37647,156.61,156.54,6.0831]
[1723212775785,6.63678,156.6,156.54,6.0831]
[1723212775981,0.25098,156.59,156.54,6.0831]
[1723212776983,0.25098,156.59,156.49,6.2824]
[1723212776984,0.12549,156.58,156.49,6.2824]
[1723212777296,43.46,156.63,156.49,6.2824]
[1723212777603,0.25098,156.6,156.49,6.2824]
[1723212777804,0.25098,156.59,156.49,6.2824]
[1723212778185,46.018421,156.66,156.49,6.2824]
[1723212778504,0.25098,156.65,156.5,43.46]
[1723212778799,0.12549,156.62,156.5,43.46]
[1723212779303,15.9541,156.7,156.53,43.46]
[1723212779600,6.3824,156.68,156.54,21.27735344]
[1723212779802,50.12261888,156.71,156.54,20.0]
[1723212780400,6.3832,156.67,156.54,20.0]
[1723212780601,50.12261888,156.71,156.54,20.0]
[1723212780602,6.384,156.65,156.54,20.0]
[1723212780798,15.955,156.7,156.54,20.0]
[1723212780799,6.384,156.64,156.54,20.0]
[1723212781109,15.955,156.7,156.54,20.0]
[1723212781304,6.3837,156.65,156.54,20.0]
[1723212781806,0.12549,156.66,156.55,1.27719901]
[1723212782007,6.3837,156.65,156.54,20.0]
[1723212782208,0.12549,156.64,156.54,20.0]
[1723212782384,6.3817,156.7,156.56,43.46]
[1723212782705,6.3817,156.7,156.57,21.27713566]
[1723212783107,43.46,156.74,156.6,15.366]
[1723212783307,43.46,156.74,156.61,20.0]
[1723212783699,43.46,156.74,156.6,15.366]
[1723212784210,6.3836,156.65,156.58,6.3336]
[1723212784518,6.3852,156.62,156.54,15.6529]
[1723212784716,0.12549,156.63,156.54,15.6529]
[1723212784717,0.12549,156.61,156.54,15.6529]
[1723212785105,6.3857,156.6,156.54,15.6529]
[1723212785412,0.25098,156.59,156.53,6.238]
[1723212785605,0.12549,156.59,156.53,6.238]
[1723212785807,0.12549,156.6,156.53,6.238]
[1723212786005,6.3819,156.7,156.54,1.27765578]
[1723212786209,43.46,156.71,156.56,43.46]
[1723212786621,6.3832,156.66,156.57,20.0]
[1723212786822,15.9544,156.7,156.57,20.0]
[1723212787118,43.46,156.71,156.53,6.238]
[1723212787119,6.3853,156.61,156.53,6.238]
[1723212787319,6.3848,156.63,156.53,6.238]
[1723212787624,0.12549,156.7,156.53,6.238]
[1723212787788,0.12549,156.67,156.53,6.238]
[1723212787987,20.0,156.7,156.55,43.46]
[1723212788189,6.3828,156.67,156.55,43.46]
[1723212788386,6.65920936,156.73,156.58,43.46]
[1723212788612,59.4101,156.74,156.58,43.46]
[1723212788613,43.46,156.74,156.59,15.962]
[1723212788787,43.46,156.74,156.6,20.0]
[1723212788993,43.46,156.74,156.61,1.27700198]
[1723212789208,6.3807,156.73,156.6,20.0]
[1723212789401,6.3807,156.73,156.62,6.5861]
[1723212789719,6.3807,156.73,156.63,20.0]
[1723212790016,302.66,156.77,156.63,20.0]
[1723212790017,6.3808,156.72,156.63,20.0]
[1723212790313,6.3813,156.71,156.63,20.0]
[1723212790889,6.3808,156.72,156.63,20.0]
[1723212791089,6.3804,156.73,156.63,20.0]
[1723212791317,302.66,156.77,156.63,20.0]
[1723212791318,6.38,156.74,156.63,20.0]
[1723212791511,51.75687,156.73,156.63,20.0]
[1723212791713,43.46,156.8,156.64,43.46]
[1723212791925,6.3771,156.81,156.67,43.46]
[1723212792219,6.3773,156.81,156.69,15.7933]
[1723212792592,6.3776,156.8,156.7,20.0]
[1723212792792,6.65611873,156.85,156.69,15.7933]
[1723212792793,43.46,156.83,156.69,15.7933]
[1723212793010,43.46,156.8,156.69,15.7933]
[1723212793217,6.3804,156.73,156.63,15.7933]
[1723212793427,6.3808,156.72,156.63,15.7933]
[1723212793726,59.4039,156.8,156.63,15.7933]
[1723212794028,0.12549,156.76,156.63,15.7933]
[1723212794327,65.37647,156.79,156.63,15.7933]
[1723212794328,6.378,156.79,156.67,43.46]
[1723212794639,43.46,156.82,156.67,43.46]
[1723212794799,43.46,156.82,156.64,43.46]
[1723212794800,6.3796,156.75,156.64,43.46]
[1723212794999,43.46,156.82,156.64,43.46]
[1723212795225,43.46,156.82,156.65,20.0]
[1723212795526,43.46,156.85,156.68,0.12549]
[1723212795726,43.46,156.85,156.71,6.0405]
[1723212795932,6.3766,156.83,156.71,6.0405]
[1723212796101,43.46,156.85,156.71,6.0405]
[1723212796650,6.3786,156.78,156.71,6.0405]
[1723212796921,0.12549,156.79,156.71,6.0405]
[1723212797223,6.3767,156.82,156.71,6.0405]
[1723212797415,6.3768,156.82,156.71,6.0405]
[1723212798226,0.8417853,156.87,156.73,43.46]
[1723212798419,0.8417853,156.87,156.77,43.46]
[1723212798598,0.8417853,156.87,156.74,15.9317]
[1723212798916,0.8417853,156.87,156.75,20.0]
[1723212799117,0.8417853,156.87,156.74,15.9317]
[1723212799428,59.3989,156.85,156.74,15.9317]
[1723212799625,6.3767,156.82,156.74,15.9317]
[1723212799830,45.37647,156.81,156.74,15.9317]
[1723212800004,45.50196,156.81,156.74,15.9317]
[1723212800199,51.87916,156.81,156.74,15.9317]
[1723212800402,45.50196,156.81,156.71,6.0405]
[1723212800609,6.3791,156.76,156.68,16.272]
[1723212800913,6.3809,156.72,156.67,6.6011]
[1723212801114,0.25098,156.71,156.67,6.6011]
[1723212801315,0.12549,156.76,156.67,6.6011]
[1723212801621,20.0,156.78,156.67,6.6011]
[1723212801622,6.3797,156.75,156.67,6.6011]
[1723212801828,6.3806,156.73,156.67,6.6011]
[1723212802132,0.25098,156.72,156.67,6.6011]
[1723212802307,0.12549,156.71,156.67,6.6011]
[1723212802506,0.12549,156.72,156.67,6.6011]
[1723212802823,0.12549,156.77,156.67,6.6011]
[1723212803021,0.12549,156.73,156.67,6.6011]
[1723212803217,0.25098,156.74,156.67,6.6011]
[1723212803423,0.12549,156.73,156.67,6.6011]
[1723212803608,0.37647,156.77,156.67,6.6011]
[1723212804011,0.12549,156.76,156.67,6.6011]
[1723212804427,0.12549,156.76,156.67,50.0611]
[1723212804739,6.3779,156.8,156.68,20.0]
[1723212804908,0.12549,156.79,156.67,6.6011]
[1723212805104,6.3799,156.75,156.67,6.6011]
[1723212805546,6.3804,156.73,156.67,6.6011]
[1723212805712,6.3815,156.71,156.67,6.6011]
[1723212806037,0.12549,156.72,156.67,6.6011]
[1723212806249,0.12549,156.73,156.67,6.6011]
[1723212806527,0.12549,156.74,156.67,6.6011]
[1723212806528,45.25098,156.74,156.67,6.6011]
[1723212806709,6.50629,156.72,156.67,6.6011]
[1723212806906,0.25098,156.71,156.67,6.6011]
[1723212807110,0.12549,156.73,156.67,6.6011]
[1723212807344,6.3833,156.66,156.62,6.3685]
[1723212807716,6.50829,156.67,156.62,6.3685]
[1723212807924,0.12549,156.66,156.62,6.3685]
[1723212808130,0.25098,156.66,156.56,21.3174]
[1723212808454,6.3848,156.63,156.56,21.3174]
[1723212808650,0.37647,156.65,156.56,21.3174]
[1723212808651,0.25098,156.62,156.56,21.3174]
[1723212809024,0.25098,156.62,156.56,6.2658]
[1723212809025,0.12549,156.61,156.56,6.2658]
[1723212809241,0.25098,156.61,156.56,6.2658]
[1723212809446,6.51129,156.6,156.56,6.2658]
[1723212809653,0.12549,156.59,156.56,6.2658]
[1723212809828,51.63738,156.59,156.51,6.1274]
[1723212810026,0.12549,156.6,156.51,6.1274]
[1723212810348,0.12549,156.61,156.51,6.1274]
[1723212810646,0.25098,156.61,156.51,6.1274]
[1723212810848,0.25098,156.6,156.51,6.1274]
[1723212811040,6.51229,156.58,156.51,6.1274]
[1723212811241,0.12549,156.57,156.51,6.1274]
[1723212811445,0.12549,156.59,156.51,6.1274]
[1723212811446,0.12549,156.58,156.51,6.1274]
[1723212811827,0.12549,156.64,156.51,6.1274]
[1723212812032,45.0,156.64,156.51,6.1274]
[1723212812456,6.3847,156.63,156.51,6.1274]
[1723212812628,45.0,156.62,156.51,6.1274]
[1723212812828,79.4223,156.62,156.51,6.1274]
[1723212813035,6.3869,156.57,156.51,6.1274]
[1723212813232,0.12549,156.56,156.51,6.1274]
[1723212813435,0.12549,156.58,156.51,6.1274]
[1723212813639,45.37647,156.58,156.51,6.1274]
[1723212813828,0.12549,156.57,156.51,6.1274]
[1723212814146,6.3893,156.52,156.46,6.1993]
[1723212814325,0.12549,156.51,156.46,6.1993]
[1723212814521,6.64038,156.51,156.46,6.1993]
[1723212814722,0.25098,156.51,156.46,6.1993]
[1723212815460,6.63788,156.57,156.46,6.1993]
[1723212815660,45.12549,156.56,156.46,6.1993]
[1723212815839,43.46,156.62,156.46,6.1993]
[1723212816041,43.46,156.62,156.48,43.46]
[1723212816342,43.46,156.62,156.46,6.1993]
[1723212816544,43.46,156.62,156.47,20.0]
[1723212816545,6.3881,156.55,156.47,20.0]
[1723212816944,6.3865,156.58,156.47,20.0]
[1723212817266,6.66805482,156.64,156.58,22.9508]
[1723212817575,259.2,156.76,156.61,43.46]
[1723212817774,6.3797,156.75,156.61,43.46]
[1723212818058,43.46,156.78,156.61,43.46]
[1723212818235,6.3793,156.76,156.62,21.27677195]
[1723212818438,6.3339,156.81,156.62,21.27677195]
[1723212818439,6.3786,156.78,156.62,21.27657486]
[1723212818657,16.0241,156.82,156.65,0.12549]
[1723212818859,43.46,156.86,156.68,6.5022]
[1723212819060,43.46,156.83,156.68,6.5022]
[1723212819259,6.3799,156.75,156.68,6.5022]
[1723212819468,43.46,156.77,156.68,6.5022]
[1723212819652,43.46,156.8,156.68,6.5022]
[1723212821262,20.0,156.79,156.68,6.5022]
[1723212821573,26.3781,156.79,156.68,6.5022]
[1723212821759,43.46,156.77,156.59,6.2121]
[1723212821960,20.0,156.76,156.59,6.2121]
[1723212822153,6.381,156.72,156.59,6.2121]
[1723212822339,49.8402,156.74,156.59,6.2121]
[1723212822541,20.0,156.76,156.59,6.2121]
[1723212822542,20.0,156.73,156.61,43.46]
[1723212822770,0.12549,156.75,156.61,44.73661242]
[1723212822976,20.0,156.76,156.64,43.46]
[1723212823279,9.99829664,156.81,156.67,43.46]
[1723212823479,49.8364,156.83,156.68,46.27599905]
[1723212824167,43.46,156.83,156.69,20.0]
[1723212824546,0.12549,156.79,156.69,20.0]
[1723212824885,0.50196,156.79,156.68,20.0]
[1723212825051,45.50196,156.79,156.68,20.0]
[1723212825393,0.37647,156.79,156.68,20.0]
[1723212826354,0.25098,156.79,156.68,20.0]
[1723212826576,0.25098,156.79,156.69,7.93300041]
[1723212826868,6.3767,156.82,156.7,20.0]
[1723212827283,9.99677536,156.85,156.71,60.717]
[1723212827587,0.8417853,156.87,156.72,20.0]
[1723212827588,9.99585602,156.86,156.72,20.0]
[1723212827749,9.99585602,156.86,156.73,88.46]
[1723212827947,6.3751,156.86,156.74,20.0]
[1723212828143,0.8417853,156.87,156.74,20.0]
[1723212828375,0.8417853,156.87,156.76,43.46]
[1723212828550,0.8417853,156.87,156.77,6.0922]
[1723212828755,0.8417853,156.87,156.78,20.0]
[1723212829754,7.2165853,156.87,156.78,20.0]
[1723212829972,0.8417853,156.87,156.77,6.0922]
[1723212830893,6.3768,156.82,156.77,6.0922]
[1723212831072,0.12549,156.86,156.77,6.0922]
[1723212831396,6.50069,156.86,156.77,6.0922]
[1723212831707,20.0,156.85,156.77,6.0922]
[1723212831990,6.50229,156.82,156.77,6.0922]
[1723212832172,0.25098,156.81,156.77,6.0922]
[1723212832374,0.12549,156.81,156.77,6.0922]
[1723212832579,0.8417853,156.87,156.77,6.0922]
[1723212832784,20.8417853,156.87,156.77,6.0922]
[1723212832974,0.8417853,156.87,156.77,6.0922]
[1723212833390,0.8417853,156.87,156.78,20.0]
[1723212833561,0.8417853,156.87,156.79,43.46]
[1723212833761,0.8417853,156.87,156.8,20.0]
[1723212833991,0.8417853,156.87,156.8,21.27535136]
[1723212834365,0.8417853,156.87,156.8,20.0]
[1723212834562,0.8417853,156.87,156.77,6.0922]
[1723212834859,44.3017853,156.87,156.77,6.0922]
[1723212835292,6.3771,156.81,156.77,6.0922]
[1723212835504,0.25098,156.82,156.77,6.0922]
[1723212835790,0.37647,156.81,156.71,22.2866]
[1723212836198,0.25098,156.8,156.71,22.2866]
[1723212836492,0.25098,156.79,156.71,22.2866]
[1723212836661,0.12549,156.78,156.71,22.2866]
[1723212837283,51.62938,156.78,156.71,22.2866]
[1723212837492,6.3805,156.73,156.66,6.4297]
[1723212837673,0.12549,156.72,156.66,6.4297]
[1723212837987,0.12549,156.73,156.66,6.4297]
[1723212838190,0.12549,156.77,156.66,6.4297]
[1723212838499,0.25098,156.77,156.66,6.4297]
[1723212838677,0.12549,156.76,156.66,6.4297]
[1723212838868,0.25098,156.76,156.66,6.4297]
[1723212839075,0.12549,156.75,156.67,20.0]
[1723212839290,0.12549,156.76,156.67,20.0]
[1723212839591,0.12549,156.77,156.67,20.0]
[1723212839772,0.12549,156.76,156.67,20.0]
[1723212839969,0.12549,156.76,156.66,6.4297]
[1723212839970,0.12549,156.74,156.66,6.4297]
[1723212840190,45.37647,156.74,156.66,6.4297]
[1723212840373,0.12549,156.72,156.66,6.4297]
[1723212840572,0.25098,156.72,156.66,6.4297]
[1723212840789,0.25098,156.71,156.66,6.4297]
[1723212840995,0.25098,156.71,156.62,43.46]
[1723212841174,0.25098,156.71,156.6,6.5051]
[1723212841175,0.12549,156.7,156.6,6.5051]
[1723212841365,0.25098,156.7,156.6,6.5051]
[1723212841567,0.12549,156.68,156.6,6.5051]
[1723212841805,6.50829,156.68,156.6,6.5051]
[1723212841979,43.83647,156.69,156.55,6.0949]
[1723212841980,0.12549,156.65,156.55,6.0949]
[1723212842175,0.25098,156.66,156.55,6.0949]
[1723212842505,0.12549,156.65,156.55,6.0949]
[1723212842691,0.12549,156.64,156.55,6.0949]
[1723212842889,0.25098,156.64,156.55,6.0949]
[1723212843091,45.12549,156.65,156.55,6.0949]
[1723212843092,0.25098,156.65,156.55,6.0949]
[1723212843281,0.12549,156.63,156.55,6.0949]
[1723212843489,0.12549,156.65,156.55,6.0949]
[1723212843722,0.12549,156.64,156.55,6.0949]
[1723212844212,0.25098,156.64,156.55,6.0949]
[1723212844387,0.12549,156.62,156.55,6.0949]
[1723212844709,43.46,156.75,156.56,44.73747942]
[1723212845006,6.3799,156.74,156.56,44.73747942]
[1723212845215,6.3799,156.74,156.57,20.0]
[1723212845386,6.3824,156.69,156.57,20.0]
[1723212845584,43.46,156.72,156.57,20.0]
[1723212846096,6.66800016,156.75,156.57,20.0]
[1723212846097,20.0,156.71,156.57,20.0]
[1723212846282,43.46,156.77,156.59,43.46]
[1723212846610,43.46,156.77,156.58,6.5839]
[1723212846611,43.46,156.74,156.58,6.5839]
[1723212846918,6.3816,156.7,156.59,20.0]
[1723212847092,6.382,156.69,156.59,20.0]
[1723212847618,0.12549,156.7,156.58,6.5839]
[1723212847806,0.12549,156.68,156.58,6.5839]
[1723212848106,6.3845,156.63,156.53,15.1222]
[1723212848291,0.12549,156.61,156.52,6.2048]
[1723212848494,0.25098,156.61,156.52,6.2048]
[1723212848705,0.25098,156.6,156.52,6.172818]
[1723212849015,0.12549,156.6,156.52,6.172818]
[1723212849183,43.46,156.65,156.52,6.172818]
[1723212849384,0.12549,156.64,156.52,6.172818]